[Event "44th Chess Olympiad Open 2022"]
[Site "Chennai"]
[Date "2022.07.30"]
[Round "2.19"]
[White "Erdos, Viktor"]
[Black "Hossain, Enamul"]
[Result "1-0"]
[WhiteElo "2586"]
[BlackElo "2377"]
[Annotator "RC"]
[PlyCount "77"]
[EventDate "2022.??.??"]
[TimeControl "60"]

1. e4 {[%emt 0:00:04]} e5 {[%emt 0:00:23]} 2. Nf3 {[%emt 0:00:59]} Nf6 {
[%emt 0:00:13]} 3. Nxe5 {[%emt 0:10:16]} d6 {[%emt 0:00:54]} 4. Nf3 {[%emt 0:
00:00]} Nxe4 {[%emt 0:00:09]} 5. Qe2 {[%emt 0:07:39]} Qe7 {[%emt 0:00:21]} 6.
d3 {[%emt 0:00:04]} Nf6 {[%emt 0:00:35]} 7. Nc3 {[%emt 0:00:06]} Qxe2+ {
[%emt 0:02:02]} 8. Bxe2 {[%emt 0:04:04]} Be7 {[%emt 0:00:41]} 9. Bf4 {[%emt 0:
00:00]} c6 {[%emt 0:09:12]} 10. Ne4 {[%emt 0:18:57]} Nxe4 {[%emt 0:04:04]} 11.
dxe4 {[%emt 0:03:47]} Nd7 {[%emt 0:00:12]} 12. O-O-O {[%emt 0:00:58]} Nc5 {
[%emt 0:02:21]} 13. Bxd6 {[%emt 0:01:04]} Nxe4 {[%emt 0:17:43]} 14. Bxe7 {
[%emt 0:01:21]} Kxe7 {[%emt 0:00:03]} 15. Bc4 {[%emt 0:06:01]} Be6 {[%emt 0:00:
00]} 16. Bxe6 {[%emt 0:10:34]} fxe6 {[%emt 0:06:31]} 17. Rhe1 {[%emt 0:00:24]}
Nc5 {[%emt 0:01:08]} 18. b4 {[%emt 0:21:53]} Na6 {[%emt 0:00:41]} 19. Nd4 {
[%emt 0:00:09]} Rad8 {[%emt 0:07:12]} 20. Nxe6 {[%emt 0:07:48]} Rxd1+ {[%emt 0:
00:00]} 21. Kxd1 {[%emt 0:00:01]} Nxb4 {[%emt 0:01:40]} 22. a3 {[%emt 0:00:04]}
Nd5 {[%emt 0:03:30]} 23. Nc5+ {[%emt 0:00:58]} Kf6 {[%emt 0:02:49]} 24. Nxb7 {
[%emt 0:01:47]} Rb8 {[%emt 0:01:40]} 25. Nc5 {[%emt 0:00:05]} Kf7 {[%emt 0:00:
00]} 26. Kd2 {[%emt 0:00:42]} Rb5 {[%emt 0:01:19]} 27. Nb3 {[%emt 0:00:39]} Nb6
{[%emt 0:00:39]} 28. Re4 {[%emt 0:00:15]} g5 {[%emt 0:00:38]} 29. f3 {[%emt 0:
00:00]} h5 {[%emt 0:00:43]} 30. Kc1 {[%emt 0:00:40]} Rd5 {[%emt 0:00:24]} 31.
Nd4 {[%emt 0:00:26]} c5 {[%emt 0:00:48]} 32. Nc6 {[%emt 0:00:06]} a6 {[%emt 0:
00:00]} 33. Nb8 {[%emt 0:00:51]} c4 {[%emt 0:00:30]} 34. Nc6 {[%emt 0:00:18]}
Kf6 {[%emt 0:00:22]} 35. Nd4 {[%emt 0:00:13]} Rd6 {[%emt 0:00:12]} 36. Ne2 {
[%emt 0:00:19]} Nd5 {[%emt 0:00:57]} 37. Rd4 {[%emt 0:01:07]} Ke5 {[%emt 0:00:
00]} 38. Rxc4 {[%emt 0:00:10]} Kf6 {[%emt 0:01:05]} 39. Ng3 {[%emt 0:00:47]}
1-0

[Event "44th Chess Olympiad Open 2022"]
[Site "Chennai"]
[Date "2022.07.30"]
[Round "2.19"]
[White "Michalik, Peter"]
[Black "Ungurs, Edgars"]
[Result "1-0"]
[WhiteElo "2559"]
[BlackElo "2206"]
[Annotator "RC"]
[PlyCount "49"]
[EventDate "2022.??.??"]
[TimeControl "60"]

1. e4 {[%emt 0:00:03]} c6 {[%emt 0:00:18]} 2. Nf3 {[%emt 0:01:04]} d5 {[%emt 0:
00:00]} 3. d3 {[%emt 0:00:04]} dxe4 {[%emt 0:02:11]} 4. dxe4 {[%emt 0:00:05]}
Qxd1+ {[%emt 0:00:07]} 5. Kxd1 {[%emt 0:00:03]} Nf6 {[%emt 0:00:21]} 6. Nbd2 {
[%emt 0:00:16]} g6 {[%emt 0:00:56]} 7. Ne5 {[%emt 0:02:54]} Bh6 {[%emt 0:03:53]
} 8. f3 {[%emt 0:01:44]} Be6 {[%emt 0:01:24]} 9. Bc4 {[%emt 0:11:33]} Bxc4 {
[%emt 0:03:37]} 10. Ndxc4 {[%emt 0:00:10]} Bxc1 {[%emt 0:00:29]} 11. Kxc1 {
[%emt 0:00:03]} Nbd7 {[%emt 0:13:27]} 12. Rd1 {[%emt 0:00:51]} Nxe5 {[%emt 0:
00:00]} 13. Nxe5 {[%emt 0:00:05]} O-O {[%emt 0:02:20]} 14. a4 {[%emt 0:02:37]}
Rfd8 {[%emt 0:15:35]} 15. Ra3 {[%emt 0:00:46]} Rxd1+ {[%emt 0:08:10]} 16. Kxd1
{[%emt 0:00:03]} Rd8+ {[%emt 0:00:23]} 17. Ke2 {[%emt 0:01:05]} Ne8 {[%emt 0:
00:00]} 18. Nc4 {[%emt 0:07:18]} f6 {[%emt 0:09:13]} 19. Rb3 {[%emt 0:11:17]}
Rd7 {[%emt 0:05:46]} 20. e5 {[%emt 0:00:42]} Rd4 {[%emt 0:09:14]} 21. Nd2 {
[%emt 0:03:09]} Rxa4 {[%emt 0:09:31]} 22. Rxb7 {[%emt 0:02:41]} Kf7 {[%emt 0:
00:00]} 23. Ne4 {[%emt 0:00:24]} Ra5 {[%emt 0:02:56]} 24. f4 {[%emt 0:04:31]}
h6 {[%emt 0:01:00]} 25. Nd6+ {[%emt 0:03:40]} 1-0

[Event "44th Chess Olympiad Open 2022"]
[Site "Chennai"]
[Date "2022.07.30"]
[Round "2.19"]
[White "Zia, Tahsin Tajwar"]
[Black "Berkes, Ferenc"]
[Result "0-1"]
[WhiteElo "2307"]
[BlackElo "2649"]
[Annotator "TA"]
[PlyCount "50"]
[EventDate "2022.??.??"]
[TimeControl "60"]

{[%evp 11,50,9,7,-6,0,0,0,0,0,0,0,0,-3,-16,-20,-22,-21,-21,-21,-21,-17,-18,-45,
-208,-206,-224,-206,-187,-209,-199,-181,-266,-266,-310,-279,-512,-514,-777,
-752,-1213,-1091]} 1. d4 {[%emt 0:00:06]} d5 {[%emt 0:00:05]} 2. c4 {[%emt 0:
00:00]} c6 {[%emt 0:00:03]} 3. Nf3 {[%emt 0:00:11]} Nf6 {[%emt 0:00:05][%cal
Yg8f6,Yf6d5,Yd5b4]} 4. g3 {[%emt 0:00:44]} g6 {[%emt 0:00:33]} 5. Bg2 {[%emt 0:
00:12]} Bg7 {[%emt 0:00:05]} 6. O-O {[%emt 0:00:34]} O-O {[%emt 0:00:00]} 7. a4
{[%emt 0:02:54] D78: Fianchetto Grünfeld: 6 0-0 c6.} a5 {[%emt 0:00:00]} 8.
cxd5 {[%emt 0:01:27]} Nxd5 {[%emt 0:01:16] [#]} 9. e4 $146 {[%emt 0:00:00] The
position is equal.} ({Predecessor:} 9. Nc3 Nb4 10. Bf4 Bg4 11. Ne5 Be6 12. Qd2
Nd7 13. Nf3 Nb6 14. Bh6 Nc4 15. Qc1 {0-1 (54) Fedoseev,V (2701) -Andreikin,D 
(2729) Chess.com INT 2022}) 9... Nb4 {[%emt 0:00:09]} 10. Nc3 {[%emt 0:00:39]}
Bg4 {[%emt 0:02:28]} 11. Be3 $1 {[%emt 0:02:03]} e5 {[%emt 0:00:00] Threatens
to win with ...exd4.} 12. dxe5 {[%emt 0:14:01]} Nd7 {[%emt 0:00:00][%cal Yb8d7,
Yd7e5,Ye5c4]} 13. h3 {[%emt 0:10:05]} Bxf3 {[%emt 0:00:00]} 14. Bxf3 {[%emt 0:
00:20][%cal Ye5e6]} Nxe5 {[%emt 0:00:09]} 15. Be2 {[%emt 0:01:10]} Qc8 {
[%emt 0:00:26]} 16. Kg2 {[%emt 0:01:44]} Qe6 {[%emt 0:00:00] Against Qb3} 17.
f4 $2 {[%emt 0:24:06] [#] Loses the game.} (17. Ra3 $15) 17... Rad8 $1 $19 {
[%emt 0:10:23][%cal Ya8d8,Yd8d3,Yd3d2]} 18. Qb1 {[%emt 0:12:52] [#]} Nc4 {
[%emt 0:00:26]} 19. Bxc4 {[%emt 0:04:28]} Qxc4 {[%emt 0:00:05]} 20. e5 {
[%emt 0:03:28]} Rd3 {[%emt 0:06:33]} 21. Bf2 {[%emt 0:00:00]} (21. Rf3 $142)
21... Rfd8 {[%emt 0:03:00]} 22. Re1 {[%emt 0:03:28]} Rd2 {[%emt 0:18:02]} 23.
Qe4 {[%emt 0:01:17]} (23. Ne4 {was forced.} Nc2 24. b3 (24. Nxd2 $2 Rxd2 25.
Kg1 Qd5 $19)) 23... R8d4 {[%emt 0:04:11] Black is clearly winning.} 24. e6 {
[%emt 0:02:22]} (24. Qf3 $142 Nc2 25. Ne4 Nxe1+ 26. Rxe1 Rxb2 27. Re3) 24...
Rxe4 {[%emt 0:03:13]} 25. Rxe4 {[%emt 0:00:39]} Qc5 {[%emt 0:00:00] Weighted
Error Value: White=0.76/Black=0.00 (flawless)} 0-1

[Event "44th Chess Olympiad Open 2022"]
[Site "Chennai"]
[Date "2022.07.30"]
[Round "2.19"]
[White "Mehdi Hasan Parag"]
[Black "Acs, Peter"]
[Result "0-1"]
[WhiteElo "2227"]
[BlackElo "2575"]
[Annotator "ChessBase"]
[PlyCount "70"]
[EventDate "2022.??.??"]
[TimeControl "60"]

1. e4 {[%emt 0:00:13]} c5 {[%emt 0:00:14]} 2. Nf3 {[%emt 0:00:16]} d6 {[%emt 0:
00:00]} 3. d4 {[%emt 0:00:07]} cxd4 {[%emt 0:00:25]} 4. Nxd4 {[%emt 0:00:03]}
Nf6 {[%emt 0:00:17]} 5. Nc3 {[%emt 0:00:05]} Nc6 {[%emt 0:00:22]} 6. Bg5 {
[%emt 0:00:28]} e6 {[%emt 0:00:41]} 7. Qd2 {[%emt 0:00:09]} a6 {[%emt 0:00:26]}
8. O-O-O {[%emt 0:00:22]} Bd7 {[%emt 0:00:33]} 9. f3 {[%emt 0:00:43]} Nxd4 {
[%emt 0:06:17]} 10. Qxd4 {[%emt 0:03:08]} h6 {[%emt 0:00:15]} 11. Be3 {[%emt 0:
00:00]} Bc6 {[%emt 0:01:44]} 12. g4 {[%emt 0:00:55]} d5 {[%emt 0:12:41]} 13. g5
{[%emt 0:06:49]} hxg5 {[%emt 0:01:52]} 14. Bxg5 {[%emt 0:00:15]} dxe4 {[%emt 0:
00:00]} 15. Qe5 {[%emt 0:15:32]} Qb8 {[%emt 0:11:40]} 16. Qd4 {[%emt 0:09:47]}
exf3 {[%emt 0:05:08]} 17. h4 {[%emt 0:01:06]} Be7 {[%emt 0:04:38]} 18. h5 {
[%emt 0:03:16]} Qa7 {[%emt 0:08:28]} 19. Qf4 {[%emt 0:08:31]} Nxh5 {[%emt 0:00:
00]} 20. Qd2 {[%emt 0:06:17]} Qc5 {[%emt 0:02:49]} 21. Be3 {[%emt 0:04:17]} Qa5
{[%emt 0:00:47]} 22. Kb1 {[%emt 0:04:16]} Rd8 {[%emt 0:02:43]} 23. Bd3 {
[%emt 0:00:16]} Bf6 {[%emt 0:02:36]} 24. Rh3 {[%emt 0:05:10]} Qb4 {[%emt 0:00:
00]} 25. Ka1 {[%emt 0:02:18]} g6 {[%emt 0:00:36]} 26. Rg1 {[%emt 0:01:58]} Bd4
{[%emt 0:02:30]} 27. Rxg6 {[%emt 0:03:27]} Bxe3 {[%emt 0:07:49]} 28. Qxe3 {
[%emt 0:00:49]} fxg6 {[%emt 0:01:23]} 29. Qxe6+ {[%emt 0:07:32]} Qe7 {[%emt 0:
00:00]} 30. Qxg6+ {[%emt 0:13:10]} Kd7 {[%emt 0:00:51]} 31. Rxh5 {[%emt 0:00:
00]} Rxh5 {[%emt 0:01:23]} 32. Qxh5 {[%emt 0:00:02]} Qe1+ {[%emt 0:02:14]} 33.
Nb1 {[%emt 0:00:02]} f2 {[%emt 0:02:35]} 34. Qf7+ {[%emt 0:02:47]} Kc8 {
[%emt 0:00:29]} 35. Bf5+ {[%emt 0:00:10]} Kb8 {[%emt 0:00:16]} 0-1

[Event "44th Chess Olympiad Open 2022"]
[Site "Chennai"]
[Date "2022.07.30"]
[Round "2.20"]
[White "Parligras, Mircea-Emilian"]
[Black "Mieles Palau, Daniel"]
[Result "1-0"]
[WhiteElo "2576"]
[BlackElo "2364"]
[Annotator "ChessBase"]
[PlyCount "51"]
[EventDate "2022.??.??"]
[TimeControl "60"]

1. d4 {[%emt 0:00:04]} d5 {[%emt 0:00:06]} 2. c4 {[%emt 0:00:10]} e6 {[%emt 0:
00:00]} 3. Nf3 {[%emt 0:00:20]} c6 {[%emt 0:00:07]} 4. e3 {[%emt 0:00:25]} f5 {
[%emt 0:03:02]} 5. Bd3 {[%emt 0:00:45]} Nf6 {[%emt 0:00:08]} 6. O-O {[%emt 0:
00:00]} Bd6 {[%emt 0:00:14]} 7. b3 {[%emt 0:00:26]} Qe7 {[%emt 0:01:49]} 8. Bb2
{[%emt 0:01:14]} O-O {[%emt 0:01:06]} 9. Qc1 {[%emt 0:01:58]} b6 {[%emt 0:00:
00]} 10. Ba3 {[%emt 0:00:33]} Bb7 {[%emt 0:00:35]} 11. Bxd6 {[%emt 0:01:33]}
Qxd6 {[%emt 0:00:03]} 12. cxd5 {[%emt 0:07:48]} Nxd5 {[%emt 0:11:08]} 13. Nbd2
{[%emt 0:05:05]} Nd7 {[%emt 0:01:57]} 14. Re1 {[%emt 0:18:50]} c5 {[%emt 0:00:
00]} 15. e4 {[%emt 0:11:03]} Nf4 {[%emt 0:10:57]} 16. Bc4 {[%emt 0:04:33]} cxd4
{[%emt 0:04:51]} 17. g3 {[%emt 0:01:32]} Kh8 {[%emt 0:20:23]} 18. Qd1 {[%emt 0:
00:00]} b5 {[%emt 0:11:04]} 19. Bxb5 {[%emt 0:03:45]} fxe4 {[%emt 0:08:58]} 20.
Nxe4 {[%emt 0:01:02]} Bxe4 {[%emt 0:02:45]} 21. Rxe4 {[%emt 0:00:09]} Qd5 {
[%emt 0:02:12]} 22. Rxf4 {[%emt 0:10:41]} Rxf4 {[%emt 0:00:02]} 23. gxf4 {
[%emt 0:00:06]} Qxb5 {[%emt 0:00:03]} 24. Qxd4 {[%emt 0:00:13]} Qh5 {[%emt 0:
00:00]} 25. Ng5 {[%emt 0:02:58]} Qg4+ {[%emt 0:04:09]} 26. Kh1 {[%emt 0:00:55]}
1-0

[Event "44th Chess Olympiad Open 2022"]
[Site "Chennai"]
[Date "2022.07.30"]
[Round "2.20"]
[White "Jianu, Vlad-Cristian"]
[Black "Noboa Silva, Kevin"]
[Result "1-0"]
[WhiteElo "2511"]
[BlackElo "2304"]
[Annotator "TA"]
[PlyCount "89"]
[EventDate "2022.??.??"]
[TimeControl "60"]

{[%evp 11,89,26,29,21,33,22,41,31,23,35,30,21,28,34,36,14,24,29,29,18,72,79,77,
71,77,41,41,41,47,44,35,17,43,22,40,0,108,115,103,84,156,155,211,212,289,285,
293,226,255,223,183,193,286,249,1013,247,344,231,241,0,348,321,418,367,871,896,
868,695,880,883,882,875,1117,1112,1086,1067,888,805,1364,1227]} 1. d4 {[%emt 0:
00:00]} Nf6 {[%emt 0:00:20]} 2. Nf3 {[%emt 0:00:09]} e6 {[%emt 0:00:13]} 3. c4
{[%emt 0:00:30]} Bb4+ {[%emt 0:01:04]} 4. Bd2 {[%emt 0:00:35]} a5 {[%emt 0:00:
00]} 5. a3 {[%emt 0:02:05]} Bxd2+ {[%emt 0:00:56]} 6. Qxd2 {[%emt 0:00:06]} d6
{[%emt 0:02:24]} 7. Nc3 {[%emt 0:00:28][%cal Yg2g4] E11: Bogo-Indian.} Qe7 {
[%emt 0:03:45]} 8. e3 {[%emt 0:02:40]} e5 {[%emt 0:06:46]} 9. dxe5 {[%emt 0:00:
00] White is slightly better.} dxe5 {[%emt 0:00:08]} 10. Nd5 {[%emt 0:00:46]}
Nxd5 {[%emt 0:00:50]} 11. cxd5 {[%emt 0:00:04]} ({Of course not} 11. Qxd5 Nd7
$15) 11... O-O {[%emt 0:01:02] [#]} 12. Qc3 $146 {[%emt 0:04:47]} ({
Predecessor:} 12. Rc1 Bg4 13. Be2 Rd8 14. Qc3 Bxf3 15. Bxf3 e4 16. Be2 c6 17.
dxc6 Nxc6 18. O-O {½-½ (41) Zehrfeld,T (2043)-Safyanovsky,M (2204) Bayern
2007}) 12... Re8 {[%emt 0:02:33]} 13. Bc4 {[%emt 0:04:33][%cal Yf1c4,Yc4a2,
Ya2d5]} Bg4 {[%emt 0:15:09]} 14. Nd2 {[%emt 0:02:10]} c6 {[%emt 0:00:00]} 15.
O-O {[%emt 0:04:10]} b5 {[%emt 0:05:35]} (15... Rc8 $11 {keeps the balance.}
16. d6 Qxd6) 16. Ba2 $16 {[%emt 0:05:50]} cxd5 {[%emt 0:06:59]} 17. Bxd5 {
[%emt 0:00:07]} Ra6 {[%emt 0:00:41]} 18. Rfc1 {[%emt 0:06:27]} Rd6 {[%emt 0:15:
07]} 19. e4 {[%emt 0:02:03]} a4 {[%emt 0:00:40]} 20. Nf1 {[%emt 0:00:00]} Bd7 {
[%emt 0:05:24]} 21. Ne3 {[%emt 0:09:13]} g6 {[%emt 0:01:25]} 22. Qc7 {[%emt 0:
17:33]} Kf8 {[%emt 0:11:02]} 23. g3 {[%emt 0:04:23]} f5 {[%emt 0:00:00]} (23...
Nc6 $11 {remains equal.}) 24. exf5 {[%emt 0:02:18]} gxf5 {[%emt 0:00:24] ...f4
is the strong threat.} 25. Bg2 {[%emt 0:01:28] White is much more active.} Rc8
{[%emt 0:04:44]} ({Black should play} 25... Na6 26. Qc3 Rc8) 26. Qb7 {[%emt 0:
02:46]} Rd8 {[%emt 0:02:01]} (26... Rxc1+ $16 {keeps fighting.} 27. Rxc1 Qd8)
27. Rd1 $18 {[%emt 0:02:21]} Rd4 {[%emt 0:00:47]} 28. Qb6 {[%emt 0:03:20]
Against Qd6} Be6 {[%emt 0:01:44]} 29. Qxb5 {[%emt 0:00:38]} Qf6 {[%emt 0:00:47]
} 30. Qb6 {[%emt 0:04:03]} Kg7 {[%emt 0:00:18]} 31. Qc7+ {[%emt 0:01:08]} Kg6 {
[%emt 0:00:40]} (31... Kh8 $142 32. Rac1 Bb3) 32. Rac1 {[%emt 0:01:27][%cal
Ya1c1,Yc1c5,Yc5c6]} Bb3 $2 {[%emt 0:00:30]} (32... Kh6 33. h3 Rxd1+ 34. Rxd1
Rxd1+ 35. Nxd1 Nd7) 33. Re1 $2 {[%emt 0:00:32]} (33. Rxd4 {Intending Rg4+ and
mate.} exd4 {[#]} 34. Nxf5 $1) 33... R4d7 {[%emt 0:00:26]} 34. Qc3 {[%emt 0:00:
10]} Rd4 {[%emt 0:00:37]} 35. Qc7 {[%emt 0:00:46]} (35. Qa5 $142) 35... R4d7 {
[%emt 0:00:09]} 36. Qa5 {[%emt 0:00:00]} Rd4 {[%emt 0:00:33]} 37. Rc5 {[%emt 0:
00:09]} Nd7 $2 {[%emt 0:00:38]} (37... Qa6 38. Rc6+ Qxc6) 38. Rc6 {[%emt 0:00:
07] White is clearly winning.} Be6 {[%emt 0:00:10]} 39. Nd5 {[%emt 0:01:18]}
Rxd5 {[%emt 0:01:03]} 40. Bxd5 {[%emt 0:00:06]} Re8 {[%emt 0:00:21]} 41. Qxa4 {
[%emt 0:31:08]} Nf8 {[%emt 0:00:00] [#]} 42. Rxe6 $1 {[%emt 0:00:00]} Rxe6 {
[%emt 0:00:04]} 43. Bxe6 {[%emt 0:00:00]} Nxe6 {[%emt 0:00:04]} 44. Qc6 {
[%emt 0:00:00]} e4 {[%emt 0:00:09]} 45. Rd1 {[%emt 0:00:00] Weighted Error
Value: White=0.41/Black=0.33} 1-0

[Event "44th Chess Olympiad Open 2022"]
[Site "Chennai"]
[Date "2022.07.30"]
[Round "2.20"]
[White "Matamoros Franco, Carlos S."]
[Black "Deac, Bogdan-Daniel"]
[Result "0-1"]
[WhiteElo "2459"]
[BlackElo "2692"]
[Annotator "TA"]
[PlyCount "56"]
[EventDate "2022.??.??"]
[TimeControl "60"]

{[%evp 9,56,8,5,-5,-7,-10,-5,0,-2,-14,-12,-12,-8,-13,-12,-23,-22,-30,-29,-27,
-24,-24,-20,-29,-12,-29,-3,-27,-27,-28,-32,-50,-21,-27,-34,-25,-25,-48,-38,-45,
-39,-104,-37,-117,-124,-111,-122,-430,-443]} 1. Nf3 {[%emt 0:00:04]} d5 {
[%emt 0:01:10]} 2. g3 {[%emt 0:00:37]} Nd7 {[%emt 0:00:16]} 3. c4 {[%emt 0:00:
00]} dxc4 {[%emt 0:02:02]} 4. Qa4 {[%emt 0:00:32]} a6 {[%emt 0:00:44]} 5. Qxc4
{[%emt 0:01:29]} b5 {[%emt 0:00:55]} 6. Qb3 {[%emt 0:02:28] A09: Réti Opening:
1 Nf3 d5 2 c4.} e6 {[%emt 0:08:23]} 7. Bg2 {[%emt 0:01:19][%cal Yf3e5]} Bb7 {
[%emt 0:00:16]} 8. O-O {[%emt 0:01:03] The position is equal.} Ngf6 {[%emt 0:
00:00]} 9. Nc3 {[%emt 0:01:06]} c5 {[%emt 0:05:28]} 10. d3 {[%emt 0:12:47]} Rc8
{[%emt 0:10:35]} 11. Bg5 {[%emt 0:10:47]} Be7 {[%emt 0:04:44]} 12. Nd2 {
[%emt 0:07:07]} Bxg2 {[%emt 0:10:13]} 13. Kxg2 {[%emt 0:03:11] [#]} h6 $146 {
[%emt 0:02:04]} ({Predecessor:} 13... O-O 14. a4 b4 15. Nd1 Ne5 16. Ne3 Nd5 17.
Bxe7 Nxe3+ 18. fxe3 Qxe7 19. Nc4 Nxc4 20. Qxc4 {1-0 (39) Bang,A (2310)
-Jakobsen,P (2270) Taastrup 1994}) 14. Bxf6 {[%emt 0:00:11]} Nxf6 {[%emt 0:00:
00]} 15. Rfd1 {[%emt 0:12:57]} Qb6 {[%emt 0:05:53]} 16. a4 {[%emt 0:00:00]
[%cal Ra4b5]} Rb8 {[%emt 0:01:58]} 17. axb5 {[%emt 0:00:00]} axb5 {[%emt 0:00:
00]} 18. Qa2 {[%emt 0:00:00]} Qc6+ {[%emt 0:01:25]} 19. Kg1 {[%emt 0:02:11]}
O-O {[%emt 0:13:56]} 20. Qa7 {[%emt 0:07:35]} Nd7 {[%emt 0:12:21] And now ...
Ra8 would win.} 21. Qa6 {[%emt 0:16:22]} Rb6 {[%emt 0:00:00]} 22. Qa2 {[%emt 0:
00:00]} Rc8 {[%emt 0:02:03]} 23. Rdc1 {[%emt 0:03:19]} f5 {[%emt 0:03:31]} 24.
Nf3 {[%emt 0:00:00]} Bf6 {[%emt 0:00:00]} 25. Qb3 {[%emt 0:00:00]} (25. Nd1 $15
) 25... Qb7 {[%emt 0:00:00]} (25... c4 $1 $17 {[%cal Rc4b3]} 26. dxc4 bxc4) 26.
Ra2 {[%emt 0:05:24] [#]} (26. Nd1 $15) 26... c4 $1 $17 {[%emt 0:00:00]} 27.
dxc4 {[%emt 0:00:00]} Nc5 {[%emt 0:00:00] Deflection} 28. Qc2 {[%emt 0:00:00] 
[#]} (28. Qd1 $17 {nothing else works.} bxc4 29. Na4 Nxa4 30. Rxa4) 28... b4 $1
{[%emt 0:00:00] Weighted Error Value: White=0.36/ Black=0.05 (flawless)} ({
Weaker is} 28... bxc4 29. Rf1 $17) 0-1

[Event "44th Chess Olympiad Open 2022"]
[Site "Chennai"]
[Date "2022.07.30"]
[Round "2.20"]
[White "Bastidas Rodriguez, Emilio"]
[Black "Gavrilescu, David"]
[Result "1/2-1/2"]
[WhiteElo "2351"]
[BlackElo "2525"]
[Annotator "ChessBase"]
[PlyCount "63"]
[EventDate "2022.??.??"]
[TimeControl "60"]

1. c4 {[%emt 0:00:03]} e6 {[%emt 0:00:20]} 2. g3 {[%emt 0:00:29]} d5 {[%emt 0:
00:00]} 3. Bg2 {[%emt 0:00:08]} d4 {[%emt 0:01:00]} 4. Nf3 {[%emt 0:00:49]} c5
{[%emt 0:01:45]} 5. b4 {[%emt 0:02:17]} cxb4 {[%emt 0:00:00]} 6. a3 {[%emt 0:
00:00]} bxa3 {[%emt 0:04:15]} 7. O-O {[%emt 0:04:35]} Nf6 {[%emt 0:02:13]} 8.
d3 {[%emt 0:00:57]} Nc6 {[%emt 0:01:02]} 9. Qa4 {[%emt 0:02:57]} Nd7 {[%emt 0:
00:00]} 10. Bxa3 {[%emt 0:03:03]} Bxa3 {[%emt 0:01:49]} 11. Qxa3 {[%emt 0:00:
00]} Qe7 {[%emt 0:00:22]} 12. Nbd2 {[%emt 0:00:30]} Nc5 {[%emt 0:19:34]} 13.
Rfb1 {[%emt 0:01:11]} Rb8 {[%emt 0:03:06]} 14. Rb5 {[%emt 0:10:17]} b6 {
[%emt 0:01:37]} 15. Ng5 {[%emt 0:00:42]} Bd7 {[%emt 0:25:07]} 16. Nde4 {
[%emt 0:32:13]} Nxe4 {[%emt 0:00:00]} 17. Bxe4 {[%emt 0:02:27]} Qxa3 {[%emt 0:
00:00]} 18. Rxa3 {[%emt 0:01:31]} h6 {[%emt 0:00:00]} 19. Nf3 {[%emt 0:02:01]}
Ne7 {[%emt 0:00:00]} 20. Rxa7 {[%emt 0:00:27]} Nc8 {[%emt 0:00:00]} 21. Ra6 {
[%emt 0:08:06]} Bxb5 {[%emt 0:04:10]} 22. cxb5 {[%emt 0:00:04]} Nd6 {[%emt 0:
00:00]} 23. Nxd4 {[%emt 0:09:50]} O-O {[%emt 0:05:01]} 24. Bc6 {[%emt 0:01:43]}
Rfd8 {[%emt 0:05:35]} 25. Nf3 {[%emt 0:01:39]} Nf5 {[%emt 0:02:03]} 26. Ne5 {
[%emt 0:00:58]} Nd4 {[%emt 0:00:37]} 27. e3 {[%emt 0:00:33]} f6 {[%emt 0:01:59]
} 28. Nd7 {[%emt 0:00:48]} Nxc6 {[%emt 0:00:13]} 29. bxc6 {[%emt 0:00:15]} Rbc8
{[%emt 0:00:16]} 30. Rxb6 {[%emt 0:00:47]} Rc7 {[%emt 0:01:12]} 31. d4 {
[%emt 0:03:07]} Rdc8 {[%emt 0:04:31]} 32. Nb8 {[%emt 0:04:54]} 1/2-1/2